[Event "Uppsala GM 2019"]
[Site "Uppsala"]
[Date "2019.10.30"]
[Round "9.5"]
[White "Wahlund, Max"]
[Black "Rydstrom, Tom"]
[Result "0-1"]
[ECO "B07"]
[WhiteElo "2176"]
[BlackElo "2322"]
[Annotator "NA"]
[PlyCount "54"]
[EventDate "2019.10.25"]
[EventType "tourn"]
[EventCountry "SWE"]
[SourceTitle "playchess.com"]
[Source "ChessBase"]
[SourceQuality "1"]
[TimeControl "5400+30"]

1. d4 {[%emt 0:00:00]} d6 {[%emt 0:00:00]} 2. Bf4 {[%emt 0:00:00]} g6 {[%emt 0:00:00]} 3. Nc3 {[%emt 0:00:24]} Bg7 {[%emt 0:00:04]} 4. e4 {[%emt 0:00:20]} Nf6 {[%emt 0:00:50]} 5. Qd2 {[%emt 0:00:15]} a6 {[%emt 0:00:23]} 6. Bh6 {[%emt 0:00:48]} O-O {[%emt 0:02:35]} 7. h4 {[%emt 0:00:41]} e5 {[%emt 0:03:00]} 8. d5 {[%emt 0:08:55]} Bxh6 {[%emt 0:07:29]} 9. Qxh6 {[%emt 0:00:02]} b5 {[%emt 0:03:32]} 10. f3 {[%emt 0:02:00]} b4 {[%emt 0:01:18]} 11. Nce2 {[%emt 1:22:05]} c6 {[%emt 0:00:21]} 12. dxc6 {[%emt 0:07:59]} Nxc6 {[%emt 0:00:08]} 13. Nh3 {[%emt 0:00:06]} Bxh3 {[%emt 0:03:12]} 14. Rxh3 {[%emt 0:00:50]} d5 {[%emt 0:00:00]} 15. Rd1 {[%emt 0:04:38]} Qe7 {[%emt 0:20:52]} 16. Ng3 {[%emt 0:05:31]} Nd4 {[%emt 0:05:52]} 17. Bd3 {[%emt 0:05:16]} dxe4 {[%emt 0:00:44]} 18. Nxe4 {[%emt 0:01:25]} Nxe4 {[%emt 0:03:24]} 19. Bxe4 {[%emt 0:01:07]} Rad8 {[%emt 0:07:51]} 20. h5 {[%emt 0:07:46]} f5 {[%emt 0:05:23]} 21. Bd3 {[%emt 0:52:05]} g5 {[%emt 0:00:41]} 22. Qxa6 {[%emt 0:08:14]} Kh8 {[%emt 0:00:03]} 23. c3 {[%emt 0:03:07]} bxc3 {[%emt 0:00:21]} 24. bxc3 {[%emt 0:00:01]} e4 {[%emt 0:16:19]} 25. fxe4 {[%emt 0:01:33]} fxe4 {[%emt 0:00:32]} 26. Re3 {[%emt 0:03:06]} Qf7 {[%emt 0:01:22]} 27. Be2 {[%emt 0:03:58]} Nc2# {[%emt 0:00:11]} 0-1